lending/lending_fUSD_20240723
["ID","MTS","AMOUNT","RATE_DAILY","PERIOD"]
[333020855,1721754646713,-1698.30000001,0.00011,2]
[333020857,1721754646725,-523.11115385,0.00011,2]
[333020859,1721754646737,-856.12499999,0.00011,2]
[333020861,1721754646749,-660.29,0.00011,2]
[333020864,1721754646761,-377.3305548,0.00011,2]
[333020866,1721754646772,-544.91301756,0.00011,2]
[333020868,1721754646786,-431.885,0.00011,2]
[333021792,1721754736131,150.0,9.923e-05,2]
[333021793,1721754736155,11.67322201,9.923e-05,2]
[333021794,1721754737913,150.77350799,9.638e-05,2]
[333021795,1721754738412,150.77350799,9.789e-05,2]
[333021796,1721754743243,169.67953007,9.633e-05,2]
[333021797,1721754743720,150.34903143,9.592e-05,2]
[333021798,1721754744217,150.34903143,9.677e-05,2]
[333021799,1721754746551,151.45631594,9.692e-05,2]
[333021800,1721754747851,150.2406707,9.532e-05,2]
[333021801,1721754748090,153.8527844,9.557e-05,2]
[333021802,1721754776823,6973.78113149,9.557e-05,2]
[333021803,1721754776848,10000.0,9.557e-05,2]
[333021804,1721754776873,10000.0,9.557e-05,2]
[333021805,1721754776897,2178.23814982,9.557e-05,2]
[333021808,1721754785427,150.0,9.947e-05,2]
[333021809,1721754785453,2520.59,9.947e-05,2]
[333021810,1721754785638,2670.59,9.95e-05,2]
[333021811,1721754785889,2630.58185018,9.953e-05,2]
[333021812,1721754818053,500.0,9.492e-05,2]
[333021813,1721754826883,-40.00814982,9.953e-05,2]
[333021814,1721754826908,-2670.59,9.955e-05,2]
[333021815,1721754840411,-150.0,9.958e-05,2]
[333021816,1721754840578,-150.0,9.958e-05,2]
[333021817,1721754841194,-150.0,9.958e-05,2]
[333021818,1721754841251,-264.71,9.958e-05,2]
[333021820,1721754860151,272.0568143,9.953e-05,2]
[333021821,1721754872929,3217.08735342,9.953e-05,2]
[333021825,1721754983499,1000.0,9.562e-05,2]
[333021826,1721755003596,250.0,9.558e-05,2]
[333021827,1721755015441,-291.13157161,9.958e-05,2]
[333021828,1721755019211,2550.25768246,9.559e-05,2]
[333021829,1721755019238,10000.0,9.559e-05,2]
[333021830,1721755019260,10000.0,9.559e-05,2]
[333021831,1721755019283,1349.74231754,9.559e-05,2]
[333021832,1721755020768,-270.17015338,9.958e-05,2]
[333021833,1721755030683,-150.0,9.958e-05,2]
[333021834,1721755030857,-150.0,9.958e-05,2]
[333021835,1721755030947,-150.0,9.958e-05,2]
[333021836,1721755031020,-157.97679431,9.958e-05,2]
[333021838,1721755037009,150.42776365,9.449e-05,2]
[333021839,1721755037537,150.42776365,9.499e-05,2]
[333021840,1721755038016,150.42776365,9.876e-05,2]
[333021841,1721755040207,150.01,8.219e-05,2]
[333021844,1721755044128,150.34903143,9.882e-05,2]
[333021845,1721755044219,151.46993681,9.678e-05,2]
[333021846,1721755044436,150.2406707,9.373e-05,2]
[333021847,1721755044479,1616.77,9.662e-05,2]
[333021848,1721755044552,154.92209385,9.51e-05,2]
[333021849,1721755047388,151.45631594,9.855e-05,2]
[333021850,1721755052544,1128.13,8.219e-05,2]
[333021851,1721755087271,-150.0,9.958e-05,2]
[333021852,1721755087495,-150.0,9.958e-05,2]
[333021853,1721755088968,254.47,9.581e-05,2]
[333021855,1721755092316,-150.0,9.958e-05,2]
[333021857,1721755097416,-150.0,9.958e-05,2]
[333021858,1721755097616,-150.0,9.958e-05,2]
[333021859,1721755097682,-36.6014807,9.958e-05,2]
[333021860,1721755097704,-113.3985193,9.958e-05,2]
[333021861,1721755097930,-177.73305231,9.958e-05,2]
[333021862,1721755100014,117.26694769,9.958e-05,2]
[333021863,1721755107525,-150.0,9.958e-05,2]
[333021864,1721755107674,-150.0,9.958e-05,2]
[333021865,1721755107730,-150.0,9.958e-05,2]
[333021866,1721755107836,-40.70984662,9.958e-05,2]
[333021869,1721755153179,250.0,9.595e-05,2]
[333021870,1721755154266,-150.0,9.958e-05,2]
[333021871,1721755154450,-150.0,9.958e-05,2]
[333021872,1721755164549,-150.0,9.958e-05,2]
[333021873,1721755164708,-254.29015338,9.958e-05,2]
[333021874,1721755230744,150.0,0.00015297,120]
[333021875,1721755259403,1846.6455,9.866e-05,2]
[333021876,1721755266052,2194.51084278,9.908e-05,2]
[333021879,1721755317560,150.0,9.605e-05,2]
[333021880,1721755317584,150.0,9.605e-05,2]
[333021881,1721755317607,150.0,9.605e-05,2]
[333021882,1721755317628,50.0,9.605e-05,2]
[333021883,1721755335900,150.0,9.62e-05,2]
[333021884,1721755335926,0.89393495,9.62e-05,2]
[333021885,1721755340834,149.10606505,9.354e-05,2]
[333021886,1721755340857,17.56060163,9.354e-05,2]
[333021887,1721755346167,132.43939837,9.696e-05,2]
[333021888,1721755346188,18.14557518,9.696e-05,2]
[333021889,1721755347825,131.85442482,9.655e-05,2]
[333021890,1721755347846,19.60189112,9.655e-05,2]
[333021891,1721755350053,138.05428276,9.602e-05,2]
[333021892,1721755350076,14.4761862,9.602e-05,2]
[333021893,1721755391021,1195.0,9.602e-05,2]
[333021894,1721755406883,186.79848972,9.602e-05,2]
[333021895,1721755411352,150.0,0.00014678,120]
[333021896,1721755416267,190.70984662,9.602e-05,2]
[333021897,1721755436259,500.0,9.513e-05,2]
[333021898,1721755446304,400.13633797,9.513e-05,2]
[333021899,1721755446329,198.36366203,9.513e-05,2]
[333021900,1721755549121,9801.63633797,9.518e-05,2]
[333021905,1721755640340,1071.72,8.219e-05,2]
[333021906,1721755641231,176.85,7.379e-05,2]
[333021912,1721755718497,150.0,8.944e-05,2]
[333021913,1721755718517,8.80623493,8.944e-05,2]
[333021951,1721755833377,-609.67999998,9.174e-05,2]
[333021952,1721755833389,-112.65858702,9.174e-05,2]
[333021953,1721755833398,-168.42,9.22e-05,2]
[333021954,1721755833409,-1836.58,9.22e-05,2]
[333021955,1721755833419,-200.0,9.229e-05,2]
[333021956,1721755833428,-876.81,9.233e-05,2]
[333021957,1721755833438,-250.0,9.241e-05,2]
[333021958,1721755833447,-162.16934985,9.463e-05,2]
[333021959,1721755833457,-30.14944723,9.483e-05,2]
[333021960,1721755833469,-538.94315028,9.483e-05,2]
[333021961,1721755833480,-8.97740249,9.483e-05,2]
[333021962,1721755833489,-578.07,9.485e-05,2]
[333021963,1721755833499,-578.07,9.488e-05,2]
[333021964,1721755833508,-578.07,9.49e-05,2]
[333021965,1721755833517,-300.0,9.492e-05,2]
[333021966,1721755833527,-578.07,9.493e-05,2]
[333021967,1721755833536,-578.07,9.495e-05,2]
[333021968,1721755833545,-578.07,9.498e-05,2]
[333021969,1721755833554,-578.07,9.5e-05,2]
[333021970,1721755833563,-578.07,9.503e-05,2]
[333021971,1721755833573,-578.07,9.505e-05,2]
[333021972,1721755833582,-578.07,9.508e-05,2]
[333021973,1721755833592,-578.07,9.51e-05,2]
[333021974,1721755833601,-578.07,9.513e-05,2]
[333021975,1721755833611,-578.07,9.515e-05,2]
[333021976,1721755833620,-578.07,9.518e-05,2]
[333021977,1721755833629,-1753.59434751,9.518e-05,2]
[333021978,1721755833641,-703.37788318,9.518e-05,2]
[333021979,1721755833654,-472.53583505,9.518e-05,2]
[333021980,1721755833668,-463.05,9.518e-05,2]
[333021981,1721755833684,-3185.94146673,9.518e-05,2]
[333021982,1721755834039,-266.11833696,9.518e-05,2]
[333021983,1721755834055,-825.99999941,9.518e-05,2]
[333021984,1721755834066,-402.66451155,9.518e-05,2]
[333021985,1721755834077,-4259.61070056,9.518e-05,2]
[333021986,1721755834099,-1765.47058108,9.518e-05,2]
[333021987,1721755834108,-578.07,9.52e-05,2]
[333021988,1721755834117,-578.07,9.523e-05,2]
[333021989,1721755834127,-578.07,9.525e-05,2]
[333021990,1721755834136,-578.07,9.527e-05,2]
[333021991,1721755834145,-578.07,9.53e-05,2]
[333021992,1721755834158,-153.8527844,9.553e-05,2]
[333021993,1721755834169,-150.64674319,9.594e-05,2]
[333021994,1721755834180,-150.64674319,9.678e-05,2]
[333021995,1721755834189,-425.5,9.778e-05,2]
[333021996,1721755834198,-150.0,9.888e-05,2]
[333021997,1721755834207,-150.0,9.888e-05,2]
[333021998,1721755834216,-150.0,9.888e-05,2]
[333021999,1721755834226,-150.0,9.888e-05,2]
[333022000,1721755834235,-152.53046896,9.918e-05,2]
[333022001,1721755834244,-153.77388829,9.942e-05,2]
[333022002,1721755834254,-171.36,9.957e-05,2]
[333022003,1721755834263,-1257.82989352,9.961e-05,2]
[333022004,1721755834275,-1412.76010648,9.961e-05,2]
[333022005,1721755834284,-1200.34862074,9.963e-05,2]
[333022006,1721755834295,-523.015,9.963e-05,2]
[333022007,1721755834306,-947.22637926,9.963e-05,2]
[333022008,1721755834315,-411.63,9.963e-05,2]
[333022009,1721755834324,-2670.59,9.966e-05,2]
[333022010,1721755834334,-779.4689891,9.967e-05,2]
[333022011,1721755834343,-8727.03,9.968e-05,2]
[333022012,1721755834353,-304.02,9.968e-05,2]
[333022013,1721755834362,-6837.35108484,9.968e-05,2]
[333022014,1721755834373,-1165.79999,9.968e-05,2]
[333022015,1721755834385,-291.826501,9.968e-05,2]
[333022016,1721755834396,-1154.86373683,9.968e-05,2]
[333022017,1721755834409,-1974.8225,9.968e-05,2]
[333022018,1721755834429,-1472.95567452,9.968e-05,2]
[333022019,1721755834446,-450.0,9.968e-05,2]
[333022020,1721755834457,-18802.25051281,9.968e-05,2]
[333022021,1721755834467,-150.99,9.968e-05,2]
[333022022,1721755834476,-2670.59,9.968e-05,2]
[333022023,1721755834486,-2670.59,9.971e-05,2]
[333022024,1721755834496,-2670.59,9.974e-05,2]
[333022025,1721755834506,-2670.59,9.976e-05,2]
[333022026,1721755834516,-2670.59,9.979e-05,2]
[333022027,1721755834525,-2670.59,9.982e-05,2]
[333022028,1721755834534,-830.90129279,9.984e-05,2]
[333022029,1721755834546,-1618.07633989,9.984e-05,2]
[333022030,1721755834561,-221.61236732,9.984e-05,2]
[333022031,1721755834571,-2670.59,9.987e-05,2]
[333022032,1721755834581,-2670.59,9.99e-05,2]
[333022033,1721755834590,-2670.59,9.992e-05,2]
[333022034,1721755834600,-2247.41045404,9.995e-05,2]
[333022035,1721755834612,-423.17954596,9.995e-05,2]
[333022036,1721755834622,-369.41057144,9.997e-05,2]
[333022037,1721755834637,-2301.17942856,9.997e-05,2]
[333022038,1721755834647,-373.81,0.00010073,2]
[333022039,1721755834661,-150.0,0.00010162,2]
[333022040,1721755834671,-169.24,0.00010181,2]
[333022041,1721755834681,-150.98429648,0.00010245,2]
[333022042,1721755834690,-155.27597338,0.00010258,2]
[333022043,1721755834700,-151.32323002,0.00010275,2]
[333022044,1721755834710,-165.31,0.00010366,2]
[333022045,1721755834719,-150.0,0.00010366,2]
[333022046,1721755834729,-150.0,0.00010366,2]
[333022047,1721755834738,-165.31,0.00010366,2]
[333022048,1721755834748,-232.92,0.00010366,2]
[333022049,1721755834758,-850.94,0.00010378,2]
[333022050,1721755834768,-327.95,0.00010378,2]
[333022051,1721755834778,-358.67,0.00010378,2]
[333022052,1721755834788,-1093.4,0.00010378,2]
[333022053,1721755834798,-338.22,0.00010378,2]
[333022054,1721755834807,-300.0,0.00010378,2]
[333022055,1721755834817,-150.0,0.00010378,2]
[333022056,1721755834826,-425.5,0.00010378,2]
[333022057,1721755834836,-165.22,0.00010378,2]
[333022058,1721755834845,-1545.87773904,0.00010386,2]
[333022081,1721755838290,-922.79744065,9.22e-05,2]
[333022082,1721755838299,-18600.10587399,0.00010386,2]
[333022088,1721755838687,-143.18638697,0.00010386,2]
[333022090,1721755838697,-6.81361303,0.00010437,2]
[333022092,1721755838717,-143.18638697,0.00010437,2]
[333022093,1721755838728,-150.0,0.00010437,2]
[333022094,1721755838739,-420.0,0.00010441,2]
[333022095,1721755838749,-1071.72,0.0001048,2]
[333022097,1721755838760,-150.64674319,0.00010543,2]
[333022099,1721755838771,-150.77350799,0.00010553,2]
[333022100,1721755838782,-106.16849275,0.00010613,2]
[333022101,1721755838799,-393.83150725,0.00010613,2]
[333022102,1721755838810,-303.39071502,0.00010622,2]
[333022103,1721755838822,-196.60928498,0.00010622,2]
[333022104,1721755838832,-500.0,0.0001063,2]
[333022105,1721755838843,-297.92695227,0.00010639,2]
[333022106,1721755838855,-202.07304773,0.00010639,2]
[333022107,1721755838865,-500.0,0.00010648,2]
[333022108,1721755838876,-500.0,0.00010657,2]
[333022109,1721755838886,-500.0,0.00010666,2]
[333022110,1721755838896,-500.0,0.00010674,2]
[333022111,1721755838907,-500.0,0.00010683,2]
[333022112,1721755839124,-500.0,0.00010692,2]
[333022113,1721755839147,-151.45631594,0.00010697,2]
[333022114,1721755839156,-500.0,0.00010701,2]
[333022115,1721755839173,-500.0,0.0001071,2]
[333022116,1721755839183,-150.0,0.00010712,2]
[333022117,1721755839193,-500.0,0.00010718,2]
[333022118,1721755839202,-500.0,0.00010727,2]
[333022119,1721755839211,-500.0,0.00010736,2]
[333022120,1721755839220,-154.34382626,0.00010742,2]
[333022121,1721755839230,-500.0,0.00010745,2]
[333022122,1721755839239,-500.0,0.00010754,2]
[333022123,1721755839249,-1000.0,0.00010757,2]
[333022124,1721755839259,-500.0,0.00010762,2]
[333022125,1721755839268,-500.0,0.00010771,2]
[333022126,1721755839278,-500.0,0.0001078,2]
[333022127,1721755839288,-500.0,0.00010789,2]
[333022128,1721755839298,-500.0,0.00010798,2]
[333022129,1721755839307,-500.0,0.00010806,2]
[333022130,1721755839317,-500.0,0.00010815,2]
[333022131,1721755839326,-166.66666666,0.00010822,2]
[333022132,1721755839335,-500.0,0.00010824,2]
[333022133,1721755839345,-500.0,0.00010833,2]
[333022134,1721755839354,-1404.32752739,0.00010841,2]
[333022135,1721755839363,-2383.46831961,0.00010841,2]
[333022136,1721755839372,-154.34382626,0.00010861,2]
[333022137,1721755839382,-2061.8332,0.0001089,2]
[333022138,1721755839391,-1000.0,0.00010899,2]
[333022139,1721755839400,-7495.5044,0.000109,2]
[333022140,1721755839411,-3540.6494,0.000109,2]
[333022141,1721755839420,-500.0,0.000109,2]
[333022142,1721755839429,-4086.08106815,0.000109,2]
[333022143,1721755839441,-22766.20063185,0.000109,2]
[333022144,1721755839450,-306.17,0.000109,2]
[333022145,1721755839459,-468.3864,0.000109,2]
[333022146,1721755839468,-160.44485384,0.000109,2]
[333022147,1721755839478,-174.46635943,0.000109,2]
[333022148,1721755839487,-1017.6132676,0.000109,2]
[333022149,1721755839496,-176.96034438,0.000109,2]
[333022150,1721755839506,-3399.84393639,0.000109,2]
[333022151,1721755839532,-332.42754701,0.000109,2]
[333022152,1721755839543,-262.61383312,0.000109,2]
[333022153,1721755839554,-1075.09358541,0.000109,2]
[333022154,1721755839563,-250.0,0.00010959,2]
[333022155,1721755839572,-150.0,0.00010959,2]
[333022156,1721755839581,-3235.78,0.00010959,2]
[333022157,1721755839590,-150.64674319,0.00010959,2]
[333022158,1721755839599,-10318.42157661,0.0001097,2]
[333022159,1721755839609,-150.64674319,0.00010975,2]
[333022160,1721755839618,-234.87273119,0.00010986,2]
[333022161,1721755839627,-210.45408412,0.00010986,2]
[333022162,1721755839637,-166.06401319,0.00010986,2]
[333022163,1721755839646,-150.0,0.00010986,2]
[333022164,1721755839655,-3527.7487406,0.00010995,2]
[333022165,1721755839667,-62.2717825,0.00010995,2]
[333022166,1721755839683,-3653.20987366,0.00010995,2]
[333022167,1721755839714,-1731.09387748,0.00010995,2]
[333022168,1721755839725,-2639.11044116,0.00010995,2]
[333022169,1721755839735,-263.22193078,0.00010995,2]
[333022170,1721755839744,-941.9106783,0.00010995,2]
[333022171,1721755839755,-256.55673503,0.00010995,2]
[333022172,1721755839764,-1636.6028943,0.00010995,2]
[333022173,1721755839774,-500.0,0.00010998,2]
[333022174,1721755839783,-500.0,0.00010998,2]
[333022175,1721755839793,-500.0,0.00010998,2]
[333022176,1721755839803,-500.0,0.00010998,2]
[333022177,1721755839812,-500.0,0.00010998,2]
[333022178,1721755839823,-500.0,0.00010998,2]
[333022179,1721755839833,-500.0,0.00010998,2]
[333022180,1721755839843,-6758.57608726,0.00010999,2]
[333022181,1721755839852,-191.85217756,0.00010999,2]
[333022182,1721755839862,-194.56792257,0.00010999,2]
[333022183,1721755839871,-306.02874822,0.00010999,2]
[333022184,1721755839880,-500.0,0.00010999,2]
[333022185,1721755839890,-500.0,0.00010999,2]
[333022186,1721755839899,-500.0,0.00010999,2]
[333022187,1721755839910,-500.0,0.00010999,2]
[333022188,1721755839920,-500.0,0.00010999,2]
[333022189,1721755839929,-500.0,0.00010999,2]
[333022190,1721755839939,-500.0,0.00010999,2]
[333022191,1721755839948,-500.0,0.00010999,2]
[333022192,1721755839959,-553.92,0.00010999,2]
[333022193,1721755839969,-500.0,0.00010999,2]
[333022194,1721755839978,-500.0,0.00010999,2]
[333022195,1721755839988,-500.0,0.00010999,2]
[333022196,1721755839997,-500.0,0.00010999,2]
[333022197,1721755840007,-500.0,0.00010999,2]
[333022198,1721755840017,-500.0,0.00010999,2]
[333022199,1721755840026,-500.0,0.00010999,2]
[333022200,1721755840035,-177.44,0.00010999,2]
[333022201,1721755840045,-500.0,0.00010999,2]
[333022202,1721755840054,-344.39,0.00010999,2]
[333022203,1721755840063,-500.0,0.00010999,2]
[333022204,1721755840073,-500.0,0.00010999,2]
[333022205,1721755840082,-500.0,0.00010999,2]
[333022206,1721755840092,-318.80167394,0.00010999,2]
[333022207,1721755840105,-525.41980997,0.00010999,2]
[333022208,1721755840115,-500.0,0.00010999,2]
[333022209,1721755840124,-500.0,0.00010999,2]
[333022210,1721755840134,-244.68,0.00010999,2]
[333022211,1721755840144,-280.46,0.00010999,2]
[333022212,1721755840154,-221.61180644,0.00010999,2]
[333022215,1721755840165,-500.0,0.00010999,2]
[333022217,1721755840174,-500.0,0.00010999,2]
[333022219,1721755840185,-500.0,0.00010999,2]
[333022220,1721755840195,-618.69,0.00010999,2]
[333022221,1721755840205,-500.0,0.00010999,2]
[333022223,1721755840215,-500.0,0.00010999,2]
[333022225,1721755840224,-456.0191096,0.00010999,2]
[333022226,1721755840234,-500.0,0.00010999,2]
[333022228,1721755840244,-354.66785494,0.00010999,2]
[333022229,1721755840253,-500.0,0.00010999,2]
[333022230,1721755840263,-500.0,0.00010999,2]
[333022231,1721755840273,-279.78,0.00010999,2]
[333022232,1721755840282,-252.106068,0.00010999,2]
[333022233,1721755840292,-500.0,0.00010999,2]
[333022234,1721755840301,-400.29,0.00010999,2]
[333022235,1721755840311,-500.0,0.00010999,2]
[333022236,1721755840320,-350.35,0.00010999,2]
[333022237,1721755840330,-113.47774634,0.00010999,2]
[333022238,1721755840364,-381.33465368,0.00010999,2]
[333022239,1721755840543,-5.18759998,0.00010999,2]
[333022240,1721755840553,-387.66780528,0.00010999,2]
[333022241,1721755840565,-112.33219472,0.00010999,2]
[333022242,1721755840574,-240.18,0.00010999,2]
[333022243,1721755840584,-500.0,0.00010999,2]
[333022244,1721755840594,-500.0,0.00010999,2]
[333022246,1721755840603,-500.0,0.00010999,2]
[333022248,1721755840613,-209.49,0.00010999,2]
[333022249,1721755840622,-368.53322881,0.00010999,2]
[333022253,1721755840650,-131.46677119,0.00010999,2]
[333022255,1721755840661,-564.16,0.00010999,2]
[333022257,1721755840673,-500.0,0.00010999,2]
[333022259,1721755840684,-201.06368885,0.00010999,2]
[333022262,1721755840707,-298.93631115,0.00010999,2]
[333022264,1721755840717,-500.0,0.00010999,2]
[333022266,1721755840726,-92.57781536,0.00010999,2]
[333022268,1721755840739,-407.42218464,0.00010999,2]
[333022270,1721755840749,-207.37322377,0.00010999,2]
[333022272,1721755840760,-292.62677623,0.00010999,2]
[333022274,1721755840771,-175.9896936,0.00010999,2]
[333022276,1721755840781,-544.93,0.00010999,2]
[333022278,1721755840790,-500.0,0.00010999,2]
[333022280,1721755840800,-500.0,0.00010999,2]
[333022282,1721755840809,-549.05715338,0.00010999,2]
[333022284,1721755840819,-728.78703047,0.00010999,2]
[333022288,1721755840846,-1464.37296953,0.00010999,2]
[333022289,1721755840855,-500.0,0.00010999,2]
[333022291,1721755840866,-500.0,0.00010999,2]
[333022293,1721755840875,-606.77,0.00010999,2]
[333022295,1721755840886,-500.0,0.00010999,2]
[333022297,1721755840895,-500.0,0.00010999,2]
[333022299,1721755840906,-500.0,0.00010999,2]
[333022300,1721755840919,-500.0,0.00010999,2]
[333022301,1721755840929,-438.16205669,0.00010999,2]
[333022302,1721755840959,-61.83794331,0.00010999,2]
[333022303,1721755840969,-500.0,0.00010999,2]
[333022304,1721755840979,-500.0,0.00010999,2]
[333022305,1721755840990,-588.33,0.00010999,2]
[333022306,1721755840999,-584.09,0.00010999,2]
[333022307,1721755841009,-500.0,0.00010999,2]
[333022308,1721755841019,-326.55,0.00010999,2]
[333022309,1721755841028,-598.26,0.00010999,2]
[333022310,1721755841038,-500.0,0.00010999,2]
[333022311,1721755841048,-310.81,0.00010999,2]
[333022312,1721755841057,-230.25161727,0.00010999,2]
[333022323,1721755843563,-269.74838273,0.00010999,2]
[333022324,1721755843573,-500.0,0.00010999,2]
[333022325,1721755843583,-500.0,0.00010999,2]
[333022326,1721755843594,-500.0,0.00010999,2]
[333022327,1721755843603,-500.0,0.00010999,2]
[333022328,1721755843613,-500.0,0.00010999,2]
[333022329,1721755843623,-500.0,0.00010999,2]
[333022330,1721755843633,-500.0,0.00010999,2]
[333022331,1721755843641,-182.99,0.00010999,2]
[333022332,1721755843651,-281.67715014,0.00010999,2]
[333022333,1721755843660,-500.0,0.00010999,2]
[333022334,1721755843672,-24.41761949,0.00010999,2]
[333022335,1721755843691,-475.58238051,0.00010999,2]
[333022336,1721755843700,-500.0,0.00010999,2]
[333022337,1721755843710,-500.0,0.00010999,2]
[333022338,1721755843719,-500.0,0.00010999,2]
[333022339,1721755843729,-500.0,0.00010999,2]
[333022340,1721755843738,-500.0,0.00010999,2]
[333022341,1721755843748,-456.00655987,0.00010999,2]
[333022342,1721755843757,-627.83,0.00010999,2]
[333022343,1721755843766,-500.0,0.00010999,2]
[333022344,1721755843775,-500.0,0.00010999,2]
[333022345,1721755843785,-500.0,0.00010999,2]
[333022346,1721755843794,-500.0,0.00010999,2]
[333022347,1721755843804,-500.0,0.00010999,2]
[333022348,1721755843813,-500.0,0.00010999,2]
[333022349,1721755843822,-500.0,0.00010999,2]
[333022350,1721755843831,-500.0,0.00010999,2]
[333022351,1721755843841,-451.81,0.00010999,2]
[333022352,1721755843851,-500.0,0.00010999,2]
[333022353,1721755843861,-500.0,0.00010999,2]
[333022354,1721755843870,-500.0,0.00010999,2]
[333022355,1721755843880,-500.0,0.00010999,2]
[333022356,1721755843889,-551.531928,0.00010999,2]
[333022357,1721755843898,-500.0,0.00010999,2]
[333022358,1721755843908,-600.28,0.00010999,2]
[333022359,1721755843919,-267.21302221,0.00010999,2]
[333022360,1721755843928,-500.0,0.00010999,2]
[333022361,1721755843938,-500.0,0.00010999,2]
[333022362,1721755843947,-500.0,0.00010999,2]
[333022363,1721755843956,-339.11474092,0.00010999,2]
[333022364,1721755843966,-500.0,0.00010999,2]
[333022365,1721755843975,-500.0,0.00010999,2]
[333022366,1721755843984,-407.99461511,0.00010999,2]
[333022367,1721755843993,-565.16,0.00010999,2]
[333022368,1721755844003,-500.0,0.00010999,2]
[333022369,1721755844012,-500.0,0.00010999,2]
[333022370,1721755844022,-500.0,0.00010999,2]
[333022371,1721755844031,-500.0,0.00010999,2]
[333022372,1721755844041,-500.0,0.00010999,2]
[333022373,1721755844050,-418.81,0.00010999,2]
[333022374,1721755844059,-500.0,0.00010999,2]
[333022375,1721755844068,-500.0,0.00010999,2]
[333022376,1721755844077,-500.0,0.00010999,2]
[333022377,1721755844087,-457.81,0.00010999,2]
[333022378,1721755844097,-500.0,0.00010999,2]
[333022379,1721755844114,-500.0,0.00010999,2]
[333022380,1721755844123,-500.0,0.00010999,2]
[333022381,1721755844132,-500.0,0.00010999,2]
[333022382,1721755844143,-500.0,0.00010999,2]
[333022383,1721755844152,-500.0,0.00010999,2]
[333022384,1721755844161,-500.0,0.00010999,2]
[333022385,1721755844175,-500.0,0.00010999,2]
[333022386,1721755844189,-182.83,0.00010999,2]
[333022387,1721755844199,-500.0,0.00010999,2]
[333022388,1721755844209,-354.9,0.00010999,2]
[333022389,1721755844218,-500.0,0.00010999,2]
[333022390,1721755844229,-500.0,0.00010999,2]
[333022391,1721755844238,-500.0,0.00010999,2]
[333022392,1721755844247,-172.42582263,0.00010999,2]
[333022393,1721755844258,-178.55009373,0.00010999,2]
[333022394,1721755844268,-536.0,0.00011,2]
[333022395,1721755844278,-8733.52420816,0.00011,2]
[333022396,1721755844294,-276.66986807,0.00011,2]
[333022397,1721755844310,-5271.08000544,0.00011,2]
[333022420,1721755846283,-200.0,0.00010944,2]
[333022421,1721755846292,-160.33566741,0.00011,2]
[333022423,1721755846676,-2836.5862804,0.00011,2]
[333022425,1721755846689,-6777.82859999,0.00011,2]
[333022427,1721755846701,-11065.06218156,0.00011,2]
[333022429,1721755846713,-281.00881241,0.00011,2]
[333022431,1721755846725,-2899.39348,0.00011,2]
[333022433,1721755846736,-5132.46421584,0.00011,2]
[333022435,1721755846747,-612.67,0.00011,2]
[333022437,1721755846759,-9789.77510328,0.00011,2]
[333022440,1721755846770,-1041.17810398,0.00011,2]
[333022442,1721755846782,-31386.24143656,0.00011,2]
[333022444,1721755846793,-505.56080933,0.00011,2]
[333022446,1721755846804,-2475.51637979,0.00011,2]
[333022448,1721755846815,-2990.50036596,0.00011,2]
[333022451,1721755846827,-447.8382601,0.00011,2]
[333022453,1721755846838,-12331.1541488,0.00011,2]
[333022470,1721755862938,150.0,8.944e-05,2]
[333022471,1721755862960,150.0,8.944e-05,2]
[333022472,1721755862984,150.0,8.944e-05,2]
[333022473,1721755863007,150.0,8.944e-05,2]
[333022474,1721755863031,150.0,8.944e-05,2]
[333022475,1721755863056,150.0,8.944e-05,2]
[333022476,1721755863080,150.0,8.944e-05,2]
[333022477,1721755863104,150.0,8.944e-05,2]